Cogmind - Beta 16.1 *** ADVENTURER MODE // 2026.03.26 @ 11:00:48 Player: vinyl Result: Destroyed by 5V-RT6(R) with Subdweller Machine Gun Performance ------------- Evolutions (0) 0 Regions Visited (3) 600 Robots Destroyed (14) 70 Value Destroyed (389) 389 Prototype IDs (0) 0 Alien Tech Used (0) 0 Bonus (0) 0 TOTAL SCORE: 1059 Bonus ------- None Cogmind --------- Core Integrity 0/250 Matter 160/300 Energy 88/250 System Corruption 0% Temperature Cool (0) Movement Rolling (115) Ox1 Location -10/Subcaves Parts ------- > --- POWER (1) -------- Ion Engine > --- PROPULSION (2) --- Compact Wheel > --- UTILITY (2) ------ Small Storage Unit > --- WEAPON (2) ------- Particle Gun Subdweller Machine Gun > --- INVENTORY (8) ---- Humpback Light Assault Rifle Peak State ------------ > --- POWER ------------ Light Nuclear Core > --- PROPULSION ------- Wheel Compact Wheel > --- UTILITY ---------- Disposable Heat Sink Small Storage Unit > --- WEAPON ----------- Light Assault Rifle Battle Cannon > --- INVENTORY -------- Ion Engine Ion Engine Humpback Particle Gun Light Assault Rifle [Rating: 11] Favorites ----------- Power Light Nuclear Core Engine Light Ion Engine Power Core Light Nuclear Core Propulsion Light Treads Treads Light Treads Wheel Compact Wheel Utility Small Storage Unit Device Disposable Heat Sink Storage Small Storage Unit Weapon Particle Gun Energy Gun Particle Gun Ballistic Gun Light Assault Rifle Ballistic Cannon Battle Cannon Special Weapon Flamer Build | -11 -10 -10 -10 ------- Run | Yrd Mat Min Sub Slots Evolved . | . . . . Power . | . . . . Propulsion . | . . . . Utility . | . . . . Weapon . | . . . . Parts Attached 19 | 7 1 2 9 Power 5 | 1 1 1 2 Engine 3 | 1 . . 2 Core 2 | . 1 1 . Reactor . | . . . . Propulsion 4 | 2 . . 2 Treads 2 | 2 . . . Leg . | . . . . Wheel 2 | . . . 2 Hover . | . . . . Flight . | . . . . Utility 2 | 1 . . 1 Device 1 | . . . 1 Storage 1 | 1 . . . Processor . | . . . . Hackware . | . . . . Protection . | . . . . Artifact . | . . . . Weapon 8 | 3 . 1 4 Energy Gun 2 | 1 . 1 . Energy Cannon . | . . . . Ballistic Gun 4 | 2 . . 2 Ballistic Cannon 1 | . . . 1 Launcher . | . . . . Special Weapon 1 | . . . 1 Impact Weapon . | . . . . Slashing Weapon . | . . . . Piercing Weapon . | . . . . Special Melee Weapon . | . . . . Unidentified Prototypes . | . . . . Parts Lost 5 | . . . 5 Power 1 | . . . 1 Propulsion 1 | . . . 1 Utility . | . . . . Weapon 3 | . . . 3 Highest Loss Streak 3 | . . . 3 To Critical Strikes . | . . . . Average Backups 6 | 2 4 7 7 Power 2 | . 1 2 2 Propulsion 1 | 1 2 2 . Utility . | . . . . Weapon 3 | . 1 2 3 Tool/Special . | . . . . Unused Backups 2 | . . . 2 Power . | . . . . Propulsion . | . . . . Utility 1 | . . . 1 Weapon 1 | . . . 1 Tool/Special . | . . . . Average Slot Usage (%) 84 | . 85 85 84 Engine 1 | . 13 . . Core 12 | . . 14 13 Treads 16 | . 28 28 13 Wheel 11 | . . . 13 Storage 14 | . 14 14 14 Energy Gun 11 | . . 4 13 Ballistic Gun 11 | . 28 23 9 Special Weapon 3 | . . . 4 Peak Build Rating 11 | 6 8 10 11 Average Rating 9 | 4 6 8 9 On Entrance 6 | . 6 8 10 Avg Prop Armor Cover (%) . | . . . . Naked Turns . | . . . . Heaviest Build 17 | 11 13 14 17 Greatest Support 40 | 40 40 40 40 Greatest Overweight (x) 1 | . . . 1 Average Overweight (x) . | . . . . Largest Inventory Capacity 8 | 8 8 8 8 Average Capacity 7 | 7 8 8 8 Most Carried 8 | 4 6 8 8 Average Carried 7 | 2 4 7 7 Final Capacity 8 | 8 8 8 8 Final Carried 8 | 4 6 8 3 Class Distribution -------------------- 100% | Mutant Dominant Class ---------------- Mutant | -10/Materials Mutant | -10/Mines Mutant | -10/Subcaves Resources | -11 -10 -10 -10 ----------- Run | Yrd Mat Min Sub Matter Collected 507 | 270 64 82 91 Remotely . | . . . . Salvage Created 452 | . 168 217 67 Parts 30 | . 14 14 2 Haulers Intercepted . | . . . . Recyclers Shooed . | . . . . Parts Field Recycled . | . . . . Retrieved Matter . | . . . . Parts Self-Destructed . | . . . . Prevented . | . . . . Parts Restored . | . . . . Kills | -11 -10 -10 -10 ------- Run | Yrd Mat Min Sub Combat Hostiles Destroyed 13 | . 5 6 2 Guns 12 | . 5 6 1 Cannons 1 | . . . 1 Classes Destroyed 4 | . 3 . 1 Watcher 1 | . 1 . . Swarmer 5 | . 3 2 . Grunt 6 | . 2 4 . Subdweller 2 | . . . 2 Best Kill Streak 4 | . 4 2 1 Combat Bots Only 4 | . 4 2 1 Max Kills in Single Turn 1 | . 1 1 1 Gunslinging . | . . . . Exploded . | . . . . Melee . | . . . . Uniques/NPCs Destroyed . | . . . . Combat | -11 -10 -10 -10 -------- Run | Yrd Mat Min Sub Hostile Shots Fired 87 | . 23 18 46 Missed 22 | . 7 4 11 Hits 65 | . 16 14 35 Projectile 65 | . 16 14 35 AOE 5 | . . . 5 Critical Strikes 2 | . . 1 1 Damage Taken 1046 | . 159 144 743 Core 259 | . 7 28 224 Absorbed by Shields . | . . . . Ignored by Resistances 294 | . 48 41 205 Core Remaining (%) 100 | 100 . . . Volleys Fired 82 | . 16 13 53 Largest 2 | . 2 2 2 Hottest 165 | . 40 40 165 Shots Fired 160 | . 32 26 102 Gun 133 | . 32 26 75 Cannon 21 | . . . 21 Launcher . | . . . . Special 6 | . . . 6 Kinetic 115 | . 32 26 57 Thermal 45 | . . . 45 Explosive . | . . . . Electromagnetic . | . . . . Robot Hit Streak 23 | . 8 20 23 Robot Miss Streak 2 | . 1 2 1 Penetration Max . | . . . . Secondary Targets 1 | . 1 . . Max Gunslinging Chain 1 | . 1 . . Shots Hit Robots 74 | . 23 22 29 Core Hits 32 | . 12 13 7 Critical Kills 1 | . . 1 . Critical Parts Destroyed . | . . . . Critical Strikes 4 | . . 1 3 Burn 1 | . . . 1 Destroy 1 | . . 1 . Blast 2 | . . . 2 Melee Attacks . | . . . . Impact . | . . . . Slashing . | . . . . Piercing . | . . . . Sneak Attacks . | . . . . Combat Hostiles . | . . . . Follow-up Attacks . | . . . . Damage Inflicted 840 | . 233 230 377 Guns 611 | . 233 230 148 Cannons 207 | . . . 207 Explosions . | . . . . Melee . | . . . . Ramming . | . . . . Kinetic 803 | . 233 230 340 Thermal 37 | . . . 37 Explosive . | . . . . Electromagnetic . | . . . . Impact . | . . . . Slashing . | . . . . Piercing . | . . . . Highest Corruption . | . . . . Average Corruption . | . . . . Corruption Purged . | . . . . Corruption Blocked . | . . . . Overload Shots . | . . . . Overflow Damage . | . . . . Projectiles . | . . . . Explosions . | . . . . Melee . | . . . . Knockbacks 3 | . . . 3 Impact . | . . . . Kinetic 3 | . . . 3 Secondary . | . . . . Self-Inflicted Damage . | . . . . Shots . | . . . . Rammed . | . . . . Targets Rammed . | . . . . Kicked . | . . . . Crushed . | . . . . Highest Temperature 74 | . 18 21 74 Average Temperature 12 | . 11 8 15 Received Heat Transfer 228 | . 90 114 24 Siege Activations . | . . . . Martial Activations . | . . . . Shielding Activations . | . . . . Robots Disrupted . | . . . . Combat Hostiles . | . . . . Robots Corrupted . | . . . . Combat Hostiles . | . . . . Parts Fried . | . . . . Impact Corruptions . | . . . . Robots Melted . | . . . . Combat Hostiles . | . . . . Parts Melted . | . . . . Heat Transferred 271 | . . . 271 Parts Sabotaged . | . . . . Parts Stolen . | . . . . Parts Stripped . | . . . . Power Chain Reactions . | . . . . Alert | -11 -10 -10 -10 ------- Run | Yrd Mat Min Sub Maximum Alert Level . | . . . . Low Security (%) 100 | 100 100 100 . Level 1 . | . . . . Level 2 . | . . . . Level 3 . | . . . . Level 4 . | . . . . Level 5 . | . . . . High Security . | . . . . Max Security . | . . . . Peak Influence 117 | . 117 90 . Initial 35 | . . 35 . Average 31 | . 24 41 . Influence Increases 322 | . 157 165 . Destroy 0b10 Robot/C 220 | . 100 120 . Destroy 0b10 Robot/NC 5 | . 5 . . Destroy Leader 52 | . 22 30 . Lose Combat Pursuer 45 | . 30 15 . Influence Decreases 322 | . 50 262 10 Entered New Map 79 | . . 72 7 Time Decay 243 | . 50 190 3 Squads Dispatched . | . . . . Investigation . | . . . . Extermination . | . . . . Reinforcement . | . . . . Assault . | . . . . Garrison . | . . . . Intercept . | . . . . Searches Triggered . | . . . . Construction Impeded . | . . . . Haulers Reinforced . | . . . . Active Scanning Responses . | . . . . Cargo Convoy Interrupts . | . . . . Stealth | -11 -10 -10 -10 --------- Run | Yrd Mat Min Sub Distress Signals 2 | . 2 . . Communications Jammed . | . . . . Distress Signals . | . . . . Times Spotted 22 | . 10 7 5 Peak Tracking Total 5 | . 5 3 3 Tactical Retreats 2 | . 1 1 . Traps | -11 -10 -10 -10 ------- Run | Yrd Mat Min Sub Traps Triggered . | . . . . Indirectly . | . . . . Trap Hack Attempts . | . . . . Triggered . | . . . . Disarmed . | . . . . Reprogrammed . | . . . . Reused . | . . . . Traps Extracted . | . . . . Installed . | . . . . Triggered . | . . . . Machines | -11 -10 -10 -10 ---------- Run | Yrd Mat Min Sub Machines Disabled . | . . . . Max in Single Turn . | . . . . Machines Repaired . | . . . . Machines Dismantled . | . . . . Machines Sabotaged . | . . . . Overloaded Fab Kills . | . . . . Hacking | -11 -10 -10 -10 --------- Run | Yrd Mat Min Sub Machines Accessed 3 | . 2 . 1 Terminals 2 | . 2 . . Fabricators . | . . . . Repair Stations . | . . . . Recycling Units . | . . . . Scanalyzers . | . . . . Garrison Access . | . . . . Total Hacks 8 | . 4 . 4 Successful 6 | . 2 . 4 Failed 2 | . 2 . . Catastrophic . | . . . . Database Lockouts . | . . . . Manual 2 | . 2 . . Terminals 4 | . 4 . . Fabricators . | . . . . Repair Stations . | . . . . Recycling Units . | . . . . Scanalyzers . | . . . . Garrison Access . | . . . . Terminal Hacks 6 | . 2 . 4 Record 4 | . . . 4 Dispatch Records 1 | . 1 . . Recall Investigation 1 | . 1 . . Fabricator Hacks . | . . . . Repair Station Hacks . | . . . . Recycling Unit Hacks . | . . . . Scanalyzer . | . . . . Garrison Access Hacks . | . . . . Unauthorized Hacks . | . . . . Terminals . | . . . . Fabricators . | . . . . Repair Stations . | . . . . Recycling Units . | . . . . Scanalyzers . | . . . . Garrison Access . | . . . . Data Cores Recovered . | . . . . Used . | . . . . Hacking Detections 1 | . 1 . . Full Trace Events . | . . . . Feedback Events . | . . . . Feedback Blocked . | . . . . Robot Schematics Acquired . | . . . . Robots Built . | . . . . Authchips . | . . . . Time . | . . . . Total Robot Build Rating . | . . . . Part Schematics Acquired . | . . . . Parts Built . | . . . . Authchips . | . . . . Time . | . . . . Total Part Build Rating . | . . . . Part Studies Acquired . | . . . . Parts Repaired . | . . . . Time . | . . . . Parts Recycled . | . . . . Recycled Matter . | . . . . Retrieved Matter . | . . . . Retrieved Components . | . . . . Parts Scanalyzed . | . . . . Part Schematics Acquired . | . . . . Parts Damaged . | . . . . Bothacking | -11 -10 -10 -10 ------------ Run | Yrd Mat Min Sub Used RIF Installer . | . . . . Robots Hacked . | . . . . Non-combat . | . . . . Combat . | . . . . Robot Hacks Applied . | . . . . Relay Couplers Released . | . . . . Fabnet Peak Effective % . | . . . . Robots Rewired . | . . . . Allies Hacked . | . . . . Hacks Repelled . | . . . . Allies | -11 -10 -10 -10 -------- Run | Yrd Mat Min Sub Total Allies . | . . . . Largest Group . | . . . . Highest-Rated Group . | . . . . Highest-Rated Ally . | . . . . Total Orders . | . . . . Ally Attacks . | . . . . Total Damage . | . . . . Kills . | . . . . Allies Corrupted . | . . . . Allies Melted . | . . . . Intel | -11 -10 -10 -10 ------- Run | Yrd Mat Min Sub Active Infowar (turns) . | . . . . Robot Analysis Total . | . . . . Derelict Logs Recovered 2 | . . 1 1 Drone Launches . | . . . . Drone Recoveries . | . . . . Exploration | -11 -10 -10 -10 ------------- Run | Yrd Mat Min Sub Turns Passed 4331 | 77 222 394 3638 Spaces Moved 2286 | 42 110 174 1960 Core 3 | 3 . . . Treads 1309 | 39 110 174 986 Legs . | . . . . Wheels 974 | . . . 974 Hover . | . . . . Flight . | . . . . Fastest Speed 50 | 50 160 160 90 Average Speed 130 | 152 160 160 126 Slowest Speed 160 | 160 160 160 160 Overloaded Moves . | . . . . Propulsion Burnouts . | . . . . Robots Hopped . | . . . . Potential Cave-ins . | . . . . Cave-ins Triggered . | . . . . Exploration Rate (%) 25 | 4 30 41 27 Regions Visited 3 Branch Regions 2 Pre-discovered Areas 1 | . . 1 . Known Exits Taken . | . . . . Unknown Exits Taken 3 | 1 1 1 . Scrap Searched . | . . . . Spaces Dug . | . . . . Terrain Destroyed 1 | . . . 1 Melee . | . . . . Projectile 1 | . . . 1 AOE . | . . . . Terrain Rammed . | . . . . Walls Destroyed . | . . . . Machines Disabled . | . . . . Actions | -11 -10 -10 -10 --------- Run | Yrd Mat Min Sub Total 3477 | 52 127 266 3032 Wait 1066 | . . 74 992 Move 2283 | 41 109 173 1960 Hop . | . . . . Pick Up 11 | 3 1 2 5 Fast Attach 10 | 7 . 1 2 Attach 9 | . . . 9 Detach 3 | 1 . . 2 Swap 2 | . 1 1 . Drop 11 | . . 2 9 Fire 82 | . 16 13 53 Melee . | . . . . Ram . | . . . . Kick . | . . . . Crush . | . . . . Escape Stasis . | . . . . Rewire . | . . . . Trap . | . . . . Miscellaneous . | . . . . Route ------- -11/Scrapyard -10/Materials -10/Mines -10/Subcaves (discovered 1 exit: Mat) History --------- Turn | Location | Event 4 | -11/Scrapyard | Discovered new exit (range 16) 78 | -11/Scrapyard | Entered Materials 248 | -10/Materials | Discovered new exit (range 15) 300 | -10/Materials | Entered Mines 312 | -10/Mines | Build established: Mutant 330 | -10/Mines | Met a Derelict bent on vengeance 501 | -10/Mines | Learned location of Recycling (-8) 687 | -10/Mines | Discovered new exit (range 5) 694 | -10/Mines | Entered Subcaves 695 | -10/Subcaves | Approached by a straggling Scientist 788 | -10/Subcaves | Shifting Twisted Machinery released Sub. Laser 916 | -10/Subcaves | Identified exit to Materials 1179 | -10/Subcaves | Visited Clippyterm 1183 | -10/Subcaves | Learned Research machine intel 1933 | -10/Subcaves | Learned Factory stockpile data 2376 | -10/Subcaves | Shifting Twisted Machinery released Mak. Flight Unit 4307 | -10/Subcaves | Core integrity fell below 50% 4308 | -10/Subcaves | Ambushed by Subdweller buried in earth 4320 | -10/Subcaves | Core integrity fell below 20% 4332 | -10/Subcaves | Destroyed by 5V-RT6(R) with Subdweller Machine Gun Last Messages --------------- 04142_ JV-7X7(u) knocked back. 04144_ Wheel destroyed. 04145_ Acquired 6 matter. 04150_ H8-YBZ(R) suffers critical hit (Blast). 04150_ H8-YBZ(R) destroyed. 04155_ Acquired 32 matter. 04156_ Dropped Disposable Heat Sink. 04156_ Acquired 27 matter. 04159_ Dropped Lgt. Nuclear Core. 04163_ Acquired 1 matter. 04164_ Acquired 2 matter. 04263_ Acquired Sub. Machine Gun. 04266_ Acquired 1 matter. 04277_ JV-7X7(u) tweaks Twisted Machinery. 04308_ Battle Cannon destroyed. 04309_ 0M-4OP(R): "ARGHSUB!" 04317_ Ion Engine destroyed. 04320_ Lgt. Assault Rifle destroyed. 04326_ 0M-4OP(R) destroyed. 04331_ 5V-RT6(R) suffers critical hit (Burn). Map ----- +----------------------------------------------------+ | #??????????????????????????????????????????????? | | ##?########????????????????????????????????????? | | ### ## ##???????????????????????????????????? | | # "" [ * ##??????????????????????????????????? | | # "" &&[ #?????####?????????????????????????? | | #"" """ #???## ##????????????????????????? | | "" ### "!" ###? ? ?????????????????????? | | ## #### """ #? % ????? #????????????? | | ?####?# #### #? % ????? ?????????????? | | ??????# #?# ##?# ???? ?????????????? | | ??????##### ### #?# ???? #?????????????? | | ?????????## ### #??## #?###?????????? | | ???????###"" ###" R ### ## ##????????? | | ???????# """" ##"" R # ##???????? | | ???????# " "######"" ##??????? | | ???????# ###?????? ??????? | | ???????#"# ######?????# ?????? | | ???????### # ## ##??#### ?????? | | ????????##" ""##?#;;; ????? | | ????????#" " " ##;; ????????? | | ????????## ##" # ## #??????????????? | | ?????????####### ###; #??????????????? | | ???????????????## ##;; &%& #??????????????? | | ????????????????## #;; ##?????????????? | | ?????????????????# ;; #?????????????? | | ????????????????##""" @ ##?????????????? | | ????????????????#"""" ####??????????????? | | ????????????????##### ### ## #?????????????????? | | ????????????????????####?#######?????????????????? | | ?????????????????????????????????????????????????? | | ?????????????????????????????????????????????????? | | ?????????????????????????????????????????????????? | | ?????????????????????????????????????????????????? | | ?????????????????????????????????????????????????? | | ?????????????????????????????????????????????????? | | ?????????????????????????????????????????????????? | | ?????????????????????????????????????????????????? | | ?????????????????????????????????????????????????? | | ?????????????????????????????????????????????????? | | ?????????????????????????????????????????????????? | | ?????????????????????????????????????????????????? | | ?????????????????????????????????????????????????? | | ?????????????????????????????????????????????????? | | ?????????????????????????????????????????????????? | | ?????????????????????????????????????????????????? | | ?????????????????????????????????????????????????? | | ?????????????????????????????????????????????????? | | ?????????????????????????????????????????????????? | | ?????????????????????????????????????????????????? | | ?????????????????????????????????????????????????? | +----------------------------------------------------+ Best States ------------- Heat Dissipation 25 Coolant Potential 50 Energy Generation 14 Energy Capacity 250 Matter Stores 300 Matter Capacity 300 Sight Range 16 Terrain Scan Density 10 Resistance: KI 20 Resistance: TH 20 Resistance: EX 20 Resistance: EM 20 Resistance: I 20 Resistance: S 20 Resistance: P 20 Evasion (%) 42 Recoil Reduction 2 Offensive Hacking 10 Item Schematics ----------------- None Robot Schematics ------------------ None Fabricated ------------ Nothing Repaired ---------- Nothing Studied --------- None Alien Tech Used ----------------- None Achievements -------------- None Challenges ------------ None Game ------ Seed CooledHeatBarrier Manual? 0 Play Time 00:25:32 Cumulative 18.2 hours Start 2026.03.25 @ 12:30:54 End 2026.03.26 @ 11:00:48 Sessions 3 Manual Loads 0 Difficulty Adventurer Special Mode None Game No. 30 Rogue 0 Adventurer 30 Explorer 0 Win Type - Total 0 Types 0/0/0/0/0/0/0/0/0/0 Lore% 4 Gallery% 18 Achievement% 14 Wizard Run 0 Options --------- Layout 1 ASCII 0 Keyboard 0 Movement Mouse Keybinds 0 Fullscreen 1 Font 24/Smallcaps Map View 50x35 Zoom Use 0% Tactical HUD 1 Map Filters NONE Filters NONE Steam 1 RUN: d0cb55e9-5f3e-4901-92e0-1e35a522fb97